bitfinex-derivatives/quotes_BTCF0:USTF0_20230901
["timestamp","ask_amount","ask_price","bid_price","bid_amount"]
[1693579706164,1.0231,25778.0,25777.0,0.00012]
[1693579706363,1.0431,25778.0,25777.0,0.00012]
[1693579706867,1.0231,25778.0,25777.0,0.00012]
[1693579707054,0.01886,25777.0,25771.0,0.45980081]
[1693579707248,0.00388,25773.0,25771.0,0.02]
[1693579707461,0.00388,25771.0,25766.0,0.7907]
[1693579707650,0.00388,25771.0,25766.0,0.02]
[1693579707851,0.00388,25768.0,25766.0,0.05081495]
[1693579708051,0.00388,25768.0,25759.0,0.1536]
[1693579708052,1.0231,25767.0,25759.0,0.1536]
[1693579708258,0.3,25754.0,25749.0,1.2]
[1693579708465,0.3,25754.0,25743.0,0.24260056]
[1693579708466,0.32,25754.0,25750.0,0.04053889]
[1693579708668,1.3231,25751.0,25750.0,0.50621727]
[1693579708863,0.39738,25760.0,25744.0,1.18616016]
[1693579709062,0.39738,25760.0,25751.0,1.0231]
[1693579709063,1.0231,25757.0,25751.0,1.0231]
[1693579709251,1.0231,25757.0,25751.0,0.62]
[1693579709453,1.2,25762.0,25756.0,1.0231]
[1693579709454,1.0231,25762.0,25756.0,1.0231]
[1693579709659,0.00388,25760.0,25756.0,0.02]
[1693579709861,0.32,25760.0,25757.0,0.56056018]
[1693579710060,0.3,25766.0,25758.0,0.05468907]
[1693579710262,0.00388,25760.0,25758.0,0.02]
[1693579710457,0.00388,25760.0,25759.0,0.05654838]
[1693579710661,0.02326,25760.0,25759.0,0.02]
[1693579710854,0.3,25755.0,25754.0,0.3324948]
[1693579711068,0.3,25755.0,25752.0,0.58510211]
[1693579711069,1.34248,25754.0,25752.0,0.58510211]
[1693579711263,1.0231,25753.0,25752.0,0.56609211]
[1693579711564,0.3,25752.0,25751.0,0.037]
[1693579711768,0.3,25758.0,25745.0,0.03135676]
[1693579711769,0.30888,25760.0,25748.0,1.0231]
[1693579711959,1.3281,25760.0,25754.0,1.0231]
[1693579712156,0.305,25760.0,25757.0,1.0231]
[1693579712370,0.302,25760.0,25758.0,0.05654838]
[1693579712558,0.3,25757.0,25752.0,0.003]
[1693579712756,1.0231,25753.0,25752.0,0.003]
[1693579713078,1.0231,25755.0,25752.0,0.05654838]
[1693579713380,1.0231,25757.0,25752.0,0.60462449]
[1693579713560,1.3231,25753.0,25748.0,0.003]
[1693579713764,0.30388,25741.0,25740.0,0.12]
[1693579713955,0.32326,25741.0,25740.0,0.10841]
[1693579714155,0.32388,25741.0,25740.0,0.06266]
[1693579714357,1.3231,25746.0,25742.0,0.00388]
[1693579714662,1.3231,25746.0,25744.0,0.00388]
[1693579714971,1.0231,25751.0,25746.0,0.00388]
[1693579715270,1.0231,25751.0,25745.0,1.60512637]
[1693579715271,0.3,25748.0,25747.0,0.58042466]
[1693579715453,1.3231,25748.0,25747.0,0.67265211]
[1693579715662,1.0231,25751.0,25747.0,0.07654838]
[1693579715958,0.01938,25750.0,25747.0,0.02]
[1693579716166,1.0231,25751.0,25749.0,0.00388]
[1693579716363,1.0231,25751.0,25748.0,0.023]
[1693579716663,1.0231,25751.0,25742.0,0.01]
[1693579716664,0.3,25743.0,25740.0,0.06266]
[1693579716862,1.0231,25741.0,25740.0,0.06266]
[1693579717057,0.3,25739.0,25732.0,0.00388]
[1693579717260,0.00388,25738.0,25733.0,0.0372796]
[1693579717473,1.02698,25734.0,25733.0,0.63407874]
[1693579717663,1.04636,25734.0,25733.0,0.0333996]
[1693579717856,1.02698,25734.0,25733.0,0.0333996]
[1693579718059,0.00388,25734.0,25733.0,0.0333996]
[1693579718257,0.00388,25734.0,25733.0,0.08994798]
[1693579718457,0.3,25735.0,25733.0,1.18773705]
[1693579718661,0.30388,25738.0,25733.0,1.0764996]
[1693579718860,0.00388,25735.0,25733.0,0.0333996]
[1693579719160,0.004,25734.0,25733.0,0.0693996]
[1693579719465,0.008,25734.0,25733.0,0.18263705]
[1693579719659,0.06675,25734.0,25733.0,0.0353996]
[1693579719858,0.06275,25734.0,25733.0,0.0713996]
[1693579720061,1.08185,25734.0,25733.0,0.036]
[1693579720280,0.00388,25729.0,25725.0,0.1603]
[1693579720582,1.32698,25726.0,25725.0,0.1603]
[1693579720767,0.14451994,25726.0,25725.0,0.1603]
[1693579720967,0.16451994,25726.0,25725.0,0.1603]
[1693579721168,0.14451994,25726.0,25725.0,0.1603]
[1693579721374,1.18761994,25726.0,25724.0,0.00012]
[1693579721567,0.02326,25725.0,25724.0,0.00012]
[1693579721768,0.03937,25725.0,25724.0,0.05666838]
[1693579721970,1.0231,25731.0,25726.0,0.15548006]
[1693579722275,0.14451994,25732.0,25727.0,0.58062547]
[1693579722574,0.004,25734.0,25727.0,0.58062547]
[1693579722575,0.004,25734.0,25729.0,0.15548006]
[1693579722774,0.004,25734.0,25729.0,1.29518006]
[1693579722969,1.12125788,25741.0,25729.0,1.29518006]
[1693579722970,0.14451994,25741.0,25735.0,0.15548006]
[1693579723171,0.14451994,25742.0,25735.0,1.29518006]
[1693579723367,0.14451994,25745.0,25738.0,1.27518006]
[1693579723568,0.14451994,25745.0,25739.0,0.1608]
[1693579723766,0.14451994,25745.0,25741.0,1.27518006]
[1693579724070,0.14451994,25752.0,25747.0,0.15548006]
[1693579724265,0.14451994,25752.0,25747.0,0.17548006]
[1693579724462,0.00388,25754.0,25748.0,0.58192393]
[1693579724668,0.14451994,25758.0,25750.0,0.15548006]
[1693579724863,0.14451994,25758.0,25754.0,0.15548006]
[1693579725064,0.14451994,25758.0,25755.0,0.11123745]
[1693579725278,0.14451994,25760.0,25755.0,0.58396678]
[1693579725478,0.14451994,25760.0,25755.0,0.60396678]
[1693579725770,0.14451994,25760.0,25755.0,0.58396678]
[1693579725979,0.3,25773.0,25762.0,0.3]
[1693579726163,0.32388,25773.0,25762.0,0.32]
[1693579726367,1.1197,25771.0,25762.0,0.3]
[1693579726574,0.03937,25771.0,25762.0,0.32]
[1693579726763,0.05937,25771.0,25762.0,0.32]
[1693579726966,0.03937,25771.0,25762.0,0.32]
[1693579727166,1.1197,25778.0,25765.0,1.1197]
[1693579727369,0.00058213,25770.0,25765.0,1.14028213]
[1693579727667,0.00058213,25770.0,25766.0,0.3]
[1693579727863,0.00058213,25770.0,25767.0,0.11123745]
[1693579728066,0.00058213,25770.0,25766.0,0.3]
[1693579728267,0.00058213,25770.0,25767.0,0.11123745]
[1693579728464,0.00458213,25770.0,25767.0,0.02]
[1693579728877,0.00458213,25770.0,25768.0,0.11123745]
[1693579729074,0.00058213,25770.0,25768.0,0.02]
[1693579729374,0.00658213,25770.0,25769.0,0.69415824]
[1693579729582,0.00658213,25770.0,25769.0,0.71415824]
[1693579729778,0.00658213,25770.0,25767.0,0.021]
[1693579729779,0.02658213,25770.0,25767.0,0.021]
[1693579729978,0.00658213,25770.0,25767.0,0.041]
[1693579730179,0.02326,25769.0,25768.0,0.021]
[1693579730371,1.16296,25769.0,25768.0,0.021]
[1693579730881,1.16296,25769.0,25767.0,0.052]
[1693579731077,1.14358,25769.0,25767.0,0.10668907]
[1693579731271,1.18295,25769.0,25767.0,0.10854838]
[1693579731566,1.18295,25769.0,25768.0,0.008]
[1693579731773,1.18295,25769.0,25752.0,0.3]
[1693579731774,1.2,25766.0,25752.0,0.3]
[1693579731972,1.1197,25759.0,25752.0,0.3]
[1693579732173,1.1397,25759.0,25748.0,0.3]
[1693579732372,1.1197,25753.0,25745.0,0.3]
[1693579732577,1.1197,25750.0,25745.0,0.3]
[1693579732780,1.1197,25750.0,25748.0,0.02]
[1693579732980,0.30388,25757.0,25749.0,0.05654838]
[1693579732981,1.1197,25757.0,25749.0,0.05654838]
[1693579733281,0.9,25760.0,25752.0,0.003]
[1693579733282,0.004,25759.0,25752.0,0.003]
[1693579733582,0.004,25759.0,25753.0,0.58489248]
[1693579733583,0.04278787,25759.0,25753.0,0.58489248]
[1693579733879,1.1197,25765.0,25754.0,0.3]
[1693579734083,1.1197,25765.0,25754.0,0.32]
[1693579734268,1.1197,25762.0,25755.0,0.58585508]
[1693579734583,0.02,25765.0,25755.0,1.72555508]
[1693579734780,0.00058239,25759.0,25755.0,1.72555508]
[1693579734980,0.00058239,25759.0,25758.0,0.3]
[1693579735186,0.00358239,25759.0,25758.0,0.3]
[1693579735481,0.00358239,25759.0,25758.0,0.99629759]
[1693579735679,0.00758239,25759.0,25758.0,0.99629759]
[1693579735976,0.8586,25773.0,25758.0,0.99629759]
[1693579735977,1.1197,25771.0,25758.0,2.13599759]
[1693579736174,1.1397,25771.0,25762.0,0.3]
[1693579736580,1.1397,25771.0,25763.0,0.57916508]
[1693579736774,1.1397,25771.0,25758.0,1.1267]
[1693579736775,1.1197,25767.0,25759.0,0.3]
[1693579736979,1.1197,25764.0,25759.0,0.3]
[1693579737183,1.1397,25764.0,25759.0,0.3]
[1693579737480,0.02,25764.0,25759.0,0.3]
[1693579738076,0.02,25764.0,25758.0,0.039]
[1693579738276,0.00388,25760.0,25758.0,0.039]
[1693579738576,0.004,25764.0,25760.0,0.58469226]
[1693579738967,0.004,25764.0,25761.0,0.11123745]
[1693579739169,1.1437,25764.0,25759.0,0.032]
[1693579739478,1.18248787,25764.0,25759.0,0.032]
[1693579739680,1.18248787,25764.0,25758.0,0.039]
[1693579739871,1.18448787,25764.0,25760.0,0.006]
[1693579740073,0.00388,25762.0,25760.0,0.006]
[1693579740274,1.12358,25761.0,25760.0,0.006]
[1693579740582,0.3,25757.0,25744.0,0.3]
[1693579740781,1.1197,25753.0,25744.0,0.30102]
[1693579740973,1.1197,25753.0,25747.0,0.58581858]
[1693579740974,0.02,25753.0,25747.0,0.58581858]
[1693579741178,1.1197,25756.0,25747.0,0.60581858]
[1693579741374,0.02,25756.0,25747.0,0.02]
[1693579741576,0.01976787,25756.0,25749.0,0.3]
[1693579741884,0.004,25753.0,25752.0,0.3]
[1693579742181,1.4217,25764.0,25759.0,0.001]
[1693579742487,1.4417,25764.0,25759.0,0.001]
[1693579742884,1.15946787,25764.0,25753.0,0.58153062]
[1693579743102,0.004,25756.0,25754.0,0.00058237]
[1693579743376,0.004,25756.0,25755.0,0.69583691]
[1693579743579,0.004,25756.0,25755.0,0.71583691]
[1693579743779,0.00388,25762.0,25759.0,0.001]
[1693579743975,1.12358,25760.0,25759.0,0.001]
[1693579744184,0.01839,25759.0,25754.0,0.00058237]
[1693579744381,0.00388,25762.0,25754.0,0.00219237]
[1693579744579,0.00388,25762.0,25755.0,0.58601147]
[1693579744772,0.004,25756.0,25755.0,0.60601147]
[1693579744972,0.004,25756.0,25755.0,0.71724892]
[1693579745171,0.004,25756.0,25755.0,0.13123745]
[1693579745380,0.004,25759.0,25755.0,0.71573096]
[1693579745584,0.004,25759.0,25756.0,0.11123745]
[1693579745885,0.004,25764.0,25758.0,1.4197]
[1693579746093,0.004,25764.0,25758.0,1.4397]
[1693579746282,0.0415755,25764.0,25758.0,0.32]
[1693579746484,0.0415755,25764.0,25759.0,0.58037625]
[1693579746683,0.0375755,25764.0,25759.0,0.58037625]
[1693579747283,1.1197,25762.0,25755.0,0.307]
[1693579747480,1.1237,25759.0,25755.0,0.01]
[1693579747689,0.00388,25757.0,25755.0,0.01]
[1693579747888,1.1197,25756.0,25755.0,0.01]
[1693579748081,1.13908,25756.0,25748.0,0.1576]
[1693579748394,1.1197,25750.0,25741.0,0.07618761]
[1693579748682,0.00388,25744.0,25738.0,0.07618761]
[1693579748896,0.00388,25744.0,25736.0,0.3]
[1693579748897,1.1197,25742.0,25736.0,0.07675906]
[1693579749082,1.1397,25742.0,25735.0,0.07675906]
[1693579749283,1.1397,25742.0,25733.0,0.1151386]
[1693579749284,0.0024,25735.0,25733.0,0.1151386]
[1693579749483,0.02,25742.0,25734.0,0.11165529]
[1693579749484,1.1197,25742.0,25734.0,0.11165529]
[1693579749695,0.0575755,25742.0,25736.0,0.58440458]
[1693579749897,0.0575755,25742.0,25734.0,0.58137824]
[1693579750182,0.0615755,25742.0,25735.0,0.07687692]
[1693579750390,0.0615755,25742.0,25735.0,0.65818166]
[1693579750608,0.0415755,25742.0,25735.0,0.67818166]
[1693579750790,0.0415755,25742.0,25736.0,0.07687692]
[1693579751088,0.0415755,25742.0,25738.0,0.01]
[1693579751277,0.004,25742.0,25739.0,0.11123745]
[1693579751479,0.004,25742.0,25739.0,0.60365313]
[1693579751682,0.00058277,25741.0,25740.0,0.11123745]
[1693579751889,0.00058277,25741.0,25740.0,0.02]
[1693579752090,0.00058277,25741.0,25740.0,0.60017768]
[1693579752293,0.00058277,25741.0,25740.0,0.71141513]
[1693579752481,0.03308277,25742.0,25740.0,1.71987768]
[1693579752788,0.02858277,25742.0,25741.0,0.11123745]
[1693579752987,0.02858277,25742.0,25741.0,0.02]
[1693579753179,1.4197,25753.0,25741.0,0.67492614]
[1693579753379,1.1772755,25753.0,25742.0,0.3]
[1693579753578,0.0575755,25753.0,25743.0,1.1197]
[1693579753783,0.0575755,25753.0,25743.0,1.72329729]
[1693579754090,1.1197,25750.0,25743.0,0.56459729]
[1693579754275,0.00388,25746.0,25740.0,0.051]
[1693579754478,0.02388,25746.0,25740.0,0.051]
[1693579754674,0.02388,25746.0,25743.0,0.008]
[1693579754883,0.00388,25744.0,25743.0,0.02339837]
[1693579755085,0.02,25746.0,25741.0,0.037]
[1693579755086,0.01139,25743.0,25741.0,0.037]
[1693579755393,0.01139,25743.0,25740.0,0.0090345]
[1693579755394,0.02288,25741.0,25740.0,0.0090345]
[1693579755584,1.14358,25741.0,25740.0,0.0200345]
[1693579755776,0.0104555,25740.0,25735.0,0.583697]
[1693579755981,0.02388,25740.0,25732.0,0.1589]
[1693579756183,0.02388,25740.0,25730.0,0.07687692]
[1693579756378,0.02388,25740.0,25729.0,0.07687692]
[1693579756379,0.3,25739.0,25729.0,0.07687692]
[1693579756584,0.01935,25729.0,25728.0,0.07687692]
[1693579756781,0.07468907,25729.0,25727.0,0.05752692]
[1693579756987,0.02,25729.0,25724.0,0.1152586]
[1693579757199,1.1197,25731.0,25724.0,0.1352586]
[1693579757200,1.12358,25731.0,25724.0,0.1352586]
[1693579757488,0.00388,25723.0,25718.0,0.1151386]
[1693579757678,0.00388,25723.0,25718.0,0.09627859]
[1693579757679,0.00388,25719.0,25718.0,0.09627859]
[1693579757994,0.00388,25713.0,25709.0,0.15351813]
[1693579758287,0.02,25713.0,25710.0,0.07008744]
[1693579758498,0.02,25713.0,25700.0,1.53221813]
[1693579758692,0.02,25713.0,25705.0,0.56680121]
[1693579758693,1.1197,25709.0,25705.0,0.56680121]
[1693579758894,0.00356163,25705.0,25701.0,0.58388308]
[1693579759187,0.00388,25703.0,25701.0,0.15351813]
[1693579759392,1.2,25713.0,25701.0,0.15351813]
[1693579759393,2.3197,25710.0,25709.0,0.018]
[1693579759702,1.19624838,25710.0,25702.0,0.58104763]
[1693579759913,0.02,25710.0,25702.0,0.32]
[1693579760091,1.1197,25707.0,25702.0,0.28099]
[1693579760385,0.01901,25708.0,25700.0,1.40069]
[1693579760596,0.01901,25708.0,25700.0,0.32099]
[1693579760904,0.02,25708.0,25703.0,0.86434398]
[1693579761189,0.004,25707.0,25705.0,1.1197]
[1693579761489,0.06054838,25707.0,25706.0,0.84755889]
[1693579761684,0.004,25708.0,25706.0,0.84755889]
[1693579761893,0.03803,25714.0,25706.0,0.86755889]
[1693579762081,0.03803,25714.0,25706.0,0.84755889]
[1693579762082,0.004,25708.0,25706.0,0.84755889]
[1693579762392,0.004,25708.0,25706.0,0.58558889]
[1693579762688,0.03803,25705.0,25703.0,0.002]
[1693579762891,0.04191,25701.0,25700.0,0.02]
[1693579763198,0.07991,25701.0,25700.0,0.02]
[1693579763493,0.004,25708.0,25706.0,0.26197]
[1693579763891,0.004,25708.0,25707.0,0.58626077]
[1693579764084,0.004,25708.0,25707.0,0.60626077]
[1693579764486,0.03803,25716.0,25711.0,0.26197]
[1693579764696,0.00388,25719.0,25714.0,0.26197]
[1693579764895,0.00388,25719.0,25714.0,0.28197]
[1693579765097,0.00388,25719.0,25715.0,0.58534544]
[1693579765299,0.00388,25719.0,25715.0,0.53875549]
[1693579765801,0.03803,25724.0,25717.0,0.26197]
[1693579765996,0.03803,25727.0,25720.0,0.26197]
[1693579766188,0.05803,25727.0,25720.0,0.28197]
[1693579766699,0.05803,25727.0,25721.0,0.58361599]
[1693579766889,0.03803,25727.0,25721.0,0.60361599]
[1693579767290,0.05803,25727.0,25721.0,0.02]
[1693579767493,0.05803,25727.0,25722.0,0.58347203]
[1693579767695,0.05803,25727.0,25722.0,0.60347203]
[1693579768001,0.03803,25722.0,25715.0,0.1669]
[1693579768192,0.03803,25722.0,25721.0,0.003]
[1693579768389,0.002,25724.0,25721.0,0.60653714]
[1693579768600,0.002,25724.0,25721.0,0.86850714]
[1693579768789,0.10103,25727.0,25722.0,0.003]
[1693579768990,0.10103,25727.0,25722.0,0.026]
[1693579769202,0.10103,25727.0,25723.0,0.58321951]
[1693579769396,0.063,25727.0,25723.0,0.60321951]
[1693579769591,0.00388,25725.0,25723.0,0.02]
[1693579769796,0.35103,25727.0,25723.0,0.02]
[1693579769999,0.35103,25727.0,25723.0,0.58422112]
[1693579770199,0.00388,25725.0,25722.0,0.006]
[1693579770494,0.28803,25723.0,25722.0,0.006]
[1693579770689,0.39926745,25723.0,25722.0,0.003]
[1693579770999,0.41853191,25723.0,25721.0,0.003]
[1693579771201,0.41853191,25723.0,25721.0,0.006]
[1693579771202,0.11123745,25722.0,25721.0,0.006]
[1693579771398,0.11123745,25722.0,25721.0,0.003]
[1693579771591,0.11123745,25722.0,25715.0,0.1659]
[1693579771592,1.83223745,25722.0,25715.0,0.1659]
[1693579771905,0.31129446,25723.0,25716.0,0.58664872]
[1693579772090,0.31129446,25723.0,25716.0,0.60664872]
[1693579772289,0.024,25722.0,25721.0,0.006]
[1693579772488,0.061,25722.0,25721.0,0.026]
[1693579772692,0.061,25722.0,25721.0,0.006]
[1693579772895,0.11754838,25722.0,25721.0,0.006]
[1693579773103,0.061,25722.0,25721.0,0.026]
[1693579773301,0.061,25722.0,25721.0,0.006]
[1693579773502,0.061,25722.0,25721.0,0.026]
[1693579773898,0.28729446,25723.0,25721.0,0.02]
[1693579774103,0.002,25722.0,25721.0,0.02]
[1693579774306,0.002,25722.0,25717.0,0.01270554]
[1693579774307,0.022,25722.0,25717.0,0.01270554]
[1693579774596,0.024,25722.0,25721.0,0.003]
[1693579774793,0.19223745,25722.0,25721.0,0.006]
[1693579775198,0.17223745,25722.0,25721.0,0.006]
[1693579775396,0.061,25722.0,25721.0,0.026]
[1693579775699,0.026,25722.0,25721.0,0.022]
[1693579775906,0.08254838,25722.0,25721.0,0.002]
[1693579776403,0.026,25722.0,25721.0,0.022]
[1693579776597,0.026,25722.0,25721.0,0.002]
[1693579776902,0.026,25722.0,25721.0,0.60725728]
[1693579777201,0.037,25722.0,25721.0,0.60825728]
[1693579777406,0.061,25722.0,25721.0,0.61125728]
[1693579777595,0.17223745,25722.0,25721.0,0.59125728]
[1693579777904,0.061,25722.0,25721.0,0.59125728]
[1693579778089,0.061,25722.0,25721.0,0.61125728]
[1693579779103,0.061,25722.0,25721.0,0.59125728]
[1693579779401,0.061,25722.0,25721.0,0.61125728]
[1693579779900,0.061,25722.0,25721.0,0.59125728]
[1693579780401,0.081,25722.0,25721.0,0.006]
[1693579780593,0.061,25722.0,25721.0,0.006]
[1693579780897,0.061,25722.0,25721.0,0.6083648]
[1693579781495,0.28729446,25726.0,25721.0,0.6083648]
[1693579782297,0.00389,25725.0,25721.0,0.6083648]
[1693579782906,0.28729446,25726.0,25721.0,0.6083648]
[1693579783397,0.28729446,25726.0,25721.0,0.6053648]
[1693579783601,0.28729446,25726.0,25721.0,0.6223648]
[1693579783800,0.00389,25732.0,25724.0,1.12]
[1693579783801,0.28729446,25732.0,25724.0,1.12]
[1693579783992,0.28729446,25732.0,25724.0,1.14]
[1693579784300,0.28729446,25732.0,25727.0,1.13270554]
[1693579784507,0.28729446,25732.0,25727.0,0.03270554]
[1693579784698,0.28729446,25732.0,25728.0,0.58280591]
[1693579784904,0.28729446,25732.0,25728.0,0.60280591]
[1693579785499,0.28729446,25733.0,25728.0,0.60280591]
[1693579785707,0.28729446,25736.0,25728.0,0.60280591]
[1693579786206,0.30729446,25736.0,25728.0,0.60280591]
[1693579786396,0.28729446,25733.0,25728.0,0.60280591]
[1693579786605,0.28729446,25736.0,25728.0,0.60280591]
[1693579786905,0.28729446,25736.0,25728.0,0.60780591]
[1693579787419,0.00389,25732.0,25728.0,0.60280591]
[1693579787609,0.28729446,25738.0,25728.0,0.60780591]
[1693579787907,0.30729446,25738.0,25728.0,0.63680591]
[1693579788109,0.30729446,25738.0,25728.0,0.66980591]
[1693579788110,0.28729446,25735.0,25728.0,0.66980591]
[1693579788302,0.02,25738.0,25728.0,0.66980591]
[1693579788508,0.02,25738.0,25731.0,1.73270554]
[1693579788705,0.1154,25739.0,25734.0,1.13270554]
[1693579788902,0.1154,25739.0,25734.0,2.35270554]
[1693579789102,0.1154,25739.0,25735.0,0.5849737]
[1693579789303,0.1154,25739.0,25735.0,0.6049737]
[1693579790212,0.1154,25739.0,25737.0,1.2]
[1693579790402,0.1154,25739.0,25737.0,2.35270554]
[1693579790607,0.08226479,25739.0,25738.0,0.58520663]
[1693579790803,0.08226479,25739.0,25738.0,0.60520663]
[1693579791006,0.08226479,25739.0,25738.0,0.58520663]
[1693579791205,0.08226479,25739.0,25738.0,0.60520663]
[1693579791401,0.28729446,25744.0,25738.0,0.60520663]
[1693579791708,0.28729446,25748.0,25739.0,1.5057]
[1693579791906,0.30729446,25748.0,25741.0,1.2]
[1693579792114,0.28729446,25748.0,25741.0,1.22]
[1693579792316,0.28729446,25748.0,25742.0,0.58238147]
[1693579792612,0.28729446,25748.0,25743.0,0.3857]
[1693579792817,0.28729446,25750.0,25743.0,0.4057]
[1693579793013,0.28729446,25750.0,25744.0,0.58214763]
[1693579793200,0.28729446,25750.0,25744.0,1.80214763]
[1693579793408,0.28729446,25750.0,25745.0,1.12]
[1693579793718,0.28729446,25750.0,25746.0,0.58524015]
[1693579793719,0.30729446,25750.0,25746.0,0.58524015]
[1693579793918,0.11123745,25749.0,25746.0,0.4880803]
[1693579794211,0.30729446,25750.0,25744.0,0.57983392]
[1693579794523,0.30729446,25750.0,25747.0,0.58276005]
[1693579794703,0.30729446,25750.0,25745.0,0.58332873]
[1693579794704,0.28729446,25750.0,25745.0,0.58332873]
[1693579795012,0.28729446,25750.0,25748.0,0.5792416]
[1693579795211,0.28729446,25750.0,25745.0,0.58176702]
[1693579795413,0.28729446,25750.0,25746.0,0.58341771]
[1693579795609,0.30729446,25750.0,25745.0,0.5788651]
[1693579795808,0.30729446,25750.0,25744.0,0.006]
[1693579796016,0.30729446,25750.0,25745.0,0.57900587]
[1693579796212,0.30729446,25750.0,25748.0,0.003]
[1693579796213,0.28729446,25750.0,25748.0,0.003]
[1693579796613,0.28729446,25753.0,25749.0,0.57993809]
[1693579796912,0.05468907,25752.0,25749.0,0.57993809]
[1693579797110,0.30729446,25753.0,25749.0,0.57993809]
[1693579797509,0.05468907,25752.0,25749.0,0.57993809]
[1693579797713,0.05654838,25752.0,25749.0,0.57993809]
[1693579797903,0.07654838,25752.0,25749.0,0.58293809]
[1693579798108,0.00389,25750.0,25749.0,0.003]
[1693579798308,0.02,25750.0,25749.0,0.003]
[1693579798511,0.02,25750.0,25749.0,0.006]
[1693579798815,0.28729446,25753.0,25749.0,0.006]
[1693579799004,0.30729446,25753.0,25749.0,0.58629059]
[1693579799619,2.25099224,25760.0,25752.0,1.13270554]
[1693579799620,0.28729446,25760.0,25752.0,1.13270554]
[1693579799912,0.30729446,25760.0,25753.0,0.58071273]
[1693579800117,0.02389,25760.0,25753.0,0.60071273]
[1693579800329,0.02389,25760.0,25755.0,0.01270554]
[1693579800617,0.02389,25760.0,25756.0,0.58222294]
[1693579801212,0.05654838,25759.0,25756.0,0.58222294]
[1693579801407,0.02,25759.0,25752.0,0.01270554]
[1693579801610,0.97777794,25765.0,25752.0,0.01270554]
[1693579801611,0.1493243,25766.0,25764.0,0.61270554]
[1693579801811,0.08202476,25771.0,25766.0,1.12]
[1693579802015,0.28729446,25769.0,25765.0,0.58486335]
[1693579802220,0.28729446,25769.0,25764.0,0.01270554]
[1693579802221,0.05654838,25768.0,25764.0,0.01270554]
[1693579802421,0.05654838,25768.0,25767.0,0.58216994]
[1693579802725,0.00389,25771.0,25767.0,0.02]
[1693579802917,0.00389,25771.0,25767.0,0.04]
[1693579803114,0.00389,25771.0,25767.0,0.62259801]
[1693579803519,0.00389,25776.0,25770.0,1.12]
[1693579803714,0.00012,25777.0,25772.0,1.12]
[1693579803923,0.00012,25777.0,25771.0,0.58489424]
[1693579804123,0.00389,25776.0,25773.0,0.58159829]
[1693579804317,0.00389,25776.0,25771.0,0.58509759]
[1693579804518,0.00389,25776.0,25772.0,0.58262848]
[1693579804715,0.00389,25776.0,25771.0,0.57850141]
[1693579805028,0.004472,25776.0,25772.0,0.003]
[1693579805325,0.000582,25776.0,25773.0,1.70472975]
[1693579805512,0.000582,25776.0,25773.0,1.72472975]
[1693579805925,0.000582,25776.0,25773.0,0.60472975]
[1693579806523,0.004462,25776.0,25773.0,0.62472975]
[1693579806820,0.004462,25776.0,25773.0,0.58772975]
[1693579807321,0.004462,25776.0,25773.0,0.58472975]
[1693579807626,0.000582,25776.0,25773.0,0.021]
[1693579807826,0.000582,25776.0,25774.0,1.12]
[1693579808032,0.000582,25776.0,25774.0,1.72570175]
[1693579808033,0.004462,25776.0,25774.0,1.72570175]
[1693579808327,0.004462,25776.0,25774.0,0.58570175]
[1693579808720,0.000582,25776.0,25774.0,0.62570175]
[1693579809025,0.000582,25776.0,25775.0,1.5057]
[1693579809229,0.000582,25776.0,25775.0,1.5257]
[1693579809415,0.000582,25776.0,25775.0,2.11147035]
[1693579809723,0.000582,25776.0,25775.0,2.13147035]
[1693579809922,0.000582,25776.0,25775.0,2.71147035]
[1693579810223,0.00012,25777.0,25775.0,2.71647035]
[1693579810737,0.00012,25777.0,25775.0,2.74347035]
[1693579810918,0.28729446,25784.0,25778.0,0.01270554]
[1693579811118,0.28729446,25784.0,25778.0,1.17258554]
[1693579811318,0.30729446,25784.0,25779.0,0.58413493]
[1693579811518,0.30729446,25784.0,25779.0,0.60413493]
[1693579811726,0.00388,25791.0,25781.0,1.13270554]
[1693579811920,0.02388,25791.0,25781.0,1.13270554]
[1693579812114,0.02388,25791.0,25775.0,0.06264794]
[1693579812115,0.00388,25785.0,25782.0,0.57991289]
[1693579812323,0.02388,25785.0,25778.0,1.12]
[1693579812524,0.02388,25785.0,25781.0,0.58501366]
[1693579812825,0.02388,25785.0,25781.0,1.12]
[1693579813230,0.02388,25785.0,25782.0,0.58217976]
[1693579813725,0.02388,25785.0,25782.0,0.60205976]
[1693579813927,0.00388,25785.0,25784.0,1.12]
[1693579814319,0.00388,25785.0,25784.0,1.54613185]
[1693579814823,0.28729446,25797.0,25788.0,0.01270554]
[1693579815030,0.30729446,25797.0,25792.0,1.12]
[1693579815333,0.30729446,25797.0,25793.0,0.57771072]
[1693579815531,0.05654838,25796.0,25793.0,0.57771072]
[1693579815833,0.30729446,25797.0,25793.0,0.57771072]
[1693579816045,0.28729446,25797.0,25795.0,1.12]
[1693579816327,0.34384284,25797.0,25792.0,1.12]
[1693579816517,0.28729446,25797.0,25792.0,1.14]
[1693579816719,0.28729446,25797.0,25794.0,0.5832521]
[1693579817023,0.28729446,25797.0,25794.0,0.01988]
[1693579817220,0.28729446,25797.0,25795.0,0.58635726]
[1693579817432,0.1,25800.0,25795.0,0.58635726]
[1693579817433,0.38729446,25800.0,25796.0,1.12]
[1693579817625,0.38729446,25800.0,25796.0,1.14]
[1693579817927,0.1,25800.0,25797.0,0.57925259]
[1693579818149,0.0844813,25800.0,25799.0,1.12]
[1693579818335,0.05062945,25800.0,25799.0,1.14]
[1693579818524,0.05062945,25800.0,25799.0,1.73024633]
[1693579819036,0.05062945,25800.0,25799.0,1.71024633]
[1693579819218,0.05062945,25800.0,25799.0,0.59024633]
[1693579819420,0.27792391,25802.0,25799.0,0.57754079]
[1693579819632,0.29792391,25802.0,25797.0,1.12]